[Event "13 Open de Quenza"]
[Site "Quenza, France"]
[Date "2024.07.07"]
[Round "8.10"]
[White "Garde, Guillaume"]
[Black "Tomasi, Albert"]
[Result "0-1"]
[TimeControl "5min+3s/move"]
[WhiteElo "2082"]
[BlackElo "2295"]

1. e4 {[%clk 00:05:03]} {[%emt 00:00:01]} c5 {[%clk 00:05:03]} {[%emt
00:00:03]} 2. Nc3 {[%clk 00:05:03]} {[%emt 00:00:03]} d6 {[%clk 00:05:01]}
{[%emt 00:00:05]} 3. d4 {[%clk 00:05:03]} {[%emt 00:00:03]} cxd4 {[%clk
00:04:58]} {[%emt 00:00:05]} 4. Qxd4 {[%clk 00:05:03]} {[%emt 00:00:01]} e5
{[%clk 00:04:55]} {[%emt 00:00:06]} 5. Bb5+ {[%clk 00:04:06]} {[%emt 00:01:00]}
Nd7 {[%clk 00:04:55]} {[%emt 00:00:03]} 6. Qd3 {[%clk 00:04:05]} {[%emt
00:00:05]} h6 {[%clk 00:04:51]} {[%emt 00:00:07]} 7. Nf3 {[%clk 00:03:58]}
{[%emt 00:00:10]} Ngf6 {[%clk 00:04:51]} {[%emt 00:00:02]} 8. O-O {[%clk
00:03:55]} {[%emt 00:00:06]} Be7 {[%clk 00:04:51]} {[%emt 00:00:02]} 9. Be3
{[%clk 00:03:41]} {[%emt 00:00:17]} O-O {[%clk 00:04:47]} {[%emt 00:00:07]} 10.
Rfd1 {[%clk 00:03:31]} {[%emt 00:00:13]} Qc7 {[%clk 00:04:45]} {[%emt
00:00:05]} 11. h3 {[%clk 00:03:23]} {[%emt 00:00:12]} Nc5 {[%clk 00:04:08]}
{[%emt 00:00:40]} 12. Bxc5 {[%clk 00:03:11]} {[%emt 00:00:15]} Qxc5 {[%clk
00:04:08]} {[%emt 00:00:01]} 13. Ba4 {[%clk 00:03:00]} {[%emt 00:00:13]} Be6
{[%clk 00:03:40]} {[%emt 00:00:31]} 14. Bb3 {[%clk 00:03:00]} {[%emt 00:00:03]}
a6 {[%clk 00:03:38]} {[%emt 00:00:05]} 15. Rd2 {[%clk 00:02:41]} {[%emt
00:00:23]} b5 {[%clk 00:03:09]} {[%emt 00:00:32]} 16. Nd5 {[%clk 00:02:33]}
{[%emt 00:00:11]} Nxd5 {[%clk 00:02:44]} {[%emt 00:00:27]} 17. Bxd5 {[%clk
00:02:33]} {[%emt 00:00:03]} Rab8 {[%clk 00:02:41]} {[%emt 00:00:05]} 18. Rad1
{[%clk 00:02:26]} {[%emt 00:00:09]} Rfc8 {[%clk 00:01:50]} {[%emt 00:00:54]} 19.
Ne1 {[%clk 00:01:56]} {[%emt 00:00:33]} Bxd5 {[%clk 00:01:01]} {[%emt
00:00:53]} 20. Qxd5 {[%clk 00:01:56]} {[%emt 00:00:02]} Qb6 {[%clk 00:00:46]}
{[%emt 00:00:18]} 21. Qd3 {[%clk 00:01:24]} {[%emt 00:00:35]} Rc4 {[%clk
00:00:44]} {[%emt 00:00:05]} 22. c3 {[%clk 00:01:21]} {[%emt 00:00:06]} Rbc8
{[%clk 00:00:44]} {[%emt 00:00:02]} 23. Nc2 {[%clk 00:01:21]} {[%emt 00:00:03]}
Qb7 {[%clk 00:00:38]} {[%emt 00:00:09]} 24. f3 {[%clk 00:01:08]} {[%emt
00:00:15]} a5 {[%clk 00:00:13]} {[%emt 00:00:28]} 25. Ne3 {[%clk 00:01:08]}
{[%emt 00:00:02]} R4c5 {[%clk 00:00:13]} {[%emt 00:00:02]} 26. Nf5 {[%clk
00:01:07]} {[%emt 00:00:04]} Rd8 {[%clk 00:00:09]} {[%emt 00:00:08]} 27. Qe2
{[%clk 00:00:53]} {[%emt 00:00:17]} Bf8 {[%clk 00:00:09]} {[%emt 00:00:01]} 28.
Nxd6 {[%clk 00:00:52]} {[%emt 00:00:04]} Qb6 {[%clk 00:00:06]} {[%emt
00:00:06]} 29. Nf5 {[%clk 00:00:22]} {[%emt 00:00:33]} Rxd2 {[%clk 00:00:05]}
{[%emt 00:00:04]} 30. Rxd2 {[%clk 00:00:22]} {[%emt 00:00:03]} Rxc3+ {[%clk
00:00:05]} {[%emt 00:00:01]} 31. Kh2 {[%clk 00:00:22]} {[%emt 00:00:01]} Rc1
{[%clk 00:00:05]} {[%emt 00:00:01]} 32. Qe3 {[%clk 00:00:18]} {[%emt 00:00:06]}
Qxe3 {[%clk 00:00:05]} {[%emt 00:00:03]} 33. Nxe3 {[%clk 00:00:18]} {[%emt
00:00:01]} Bc5 {[%clk 00:00:05]} 34. Nf5 {[%clk 00:00:11]} {[%emt 00:00:11]} h5
{[%clk 00:00:05]} 35. Rd5 {[%clk 00:00:11]} {[%emt 00:00:03]} Bf2 {[%clk
00:00:05]} {[%emt 00:00:02]} 36. Rxb5 {[%clk 00:00:11]} {[%emt 00:00:03]} g6
{[%clk 00:00:05]} {[%emt 00:00:01]} 37. Nd6 {[%clk 00:00:09]} {[%emt 00:00:06]}
h4 {[%clk 00:00:05]} {[%emt 00:00:01]} 38. Rb8+ {[%clk 00:00:04]} {[%emt
00:00:08]} Kh7 {[%clk 00:00:05]} 39. Nxf7 {[%clk 00:00:00]} {[%emt 00:00:04]}
Bg3# {[%emt 00:00:01]} 0-1

[Event "13 Open de Quenza"]
[Site "Quenza, France"]
[Date "2024.07.07"]
[Round "8.11"]
[White "Krivenko, Dion"]
[Black "Ciobanu, Camelia-Adriana"]
[Result "1-0"]
[TimeControl "5min+3s/move"]
[WhiteElo "2290"]
[BlackElo "2093"]

1. e4 {[%clk 00:05:03]} {[%emt 00:00:01]} e6 {[%clk 00:05:03]} {[%emt
00:00:01]} 2. Qe2 {[%clk 00:05:03]} {[%emt 00:00:01]} c5 {[%clk 00:05:00]}
{[%emt 00:00:06]} 3. Nf3 {[%clk 00:05:03]} {[%emt 00:00:01]} Nc6 {[%clk
00:05:00]} {[%emt 00:00:01]} 4. g3 {[%clk 00:05:03]} d6 {[%clk 00:04:58]}
{[%emt 00:00:05]} 5. Bg2 {[%clk 00:05:02]} {[%emt 00:00:03]} g6 {[%clk
00:04:58]} {[%emt 00:00:02]} 6. h4 {[%clk 00:05:01]} {[%emt 00:00:04]} h5
{[%clk 00:04:54]} {[%emt 00:00:07]} 7. c3 {[%clk 00:05:01]} {[%emt 00:00:02]}
Bg7 {[%clk 00:04:54]} {[%emt 00:00:01]} 8. O-O {[%clk 00:05:01]} {[%emt
00:00:02]} Nge7 {[%clk 00:04:54]} {[%emt 00:00:01]} 9. Rd1 {[%clk 00:04:40]}
{[%emt 00:00:24]} Qc7 {[%clk 00:04:54]} {[%emt 00:00:02]} 10. Na3 {[%clk
00:04:40]} {[%emt 00:00:03]} a6 {[%clk 00:04:54]} {[%emt 00:00:02]} 11. d4
{[%clk 00:04:37]} {[%emt 00:00:06]} b5 {[%clk 00:04:34]} {[%emt 00:00:23]} 12.
d5 {[%clk 00:04:08]} {[%emt 00:00:33]} exd5 {[%clk 00:04:15]} {[%emt 00:00:21]}
13. exd5 {[%clk 00:04:08]} {[%emt 00:00:02]} Ne5 {[%clk 00:04:15]} 14. Nxe5
{[%clk 00:03:54]} {[%emt 00:00:16]} Bxe5 {[%clk 00:04:15]} {[%emt 00:00:03]} 15.
Bg5 {[%clk 00:03:34]} {[%emt 00:00:23]} Bg4 {[%clk 00:04:13]} {[%emt 00:00:05]}
16. f3 {[%clk 00:03:21]} {[%emt 00:00:16]} Bf5 {[%clk 00:03:26]} {[%emt
00:00:49]} 17. Kh2 {[%clk 00:02:19]} {[%emt 00:01:06]} Ra7 {[%clk 00:03:07]}
{[%emt 00:00:22]} 18. Re1 {[%clk 00:02:03]} {[%emt 00:00:19]} Kf8 {[%clk
00:03:00]} {[%emt 00:00:10]} 19. Rad1 {[%clk 00:01:55]} {[%emt 00:00:11]} Kg7
{[%clk 00:02:45]} {[%emt 00:00:18]} 20. Qd2 {[%clk 00:01:38]} {[%emt 00:00:20]}
Ng8 {[%clk 00:02:13]} {[%emt 00:00:34]} 21. Nc2 {[%clk 00:01:12]} {[%emt
00:00:29]} Bxc2 {[%clk 00:02:04]} {[%emt 00:00:13]} 22. Qxc2 {[%clk 00:01:12]}
{[%emt 00:00:02]} b4 {[%clk 00:02:04]} {[%emt 00:00:01]} 23. f4 {[%clk
00:00:22]} {[%emt 00:00:53]} Bf6 {[%clk 00:02:04]} {[%emt 00:00:01]} 24. Re8
{[%clk 00:00:16]} {[%emt 00:00:09]} Qd7 {[%clk 00:01:58]} {[%emt 00:00:09]} 25.
Rde1 {[%clk 00:00:16]} {[%emt 00:00:01]} Nh6 {[%clk 00:01:41]} {[%emt
00:00:20]} 26. Bxf6+ {[%clk 00:00:12]} {[%emt 00:00:07]} Kxf6 {[%clk 00:01:41]}
{[%emt 00:00:02]} 27. Rxh8 {[%clk 00:00:12]} Ng4+ {[%clk 00:01:41]} {[%emt
00:00:01]} 28. Kg1 {[%clk 00:00:12]} {[%emt 00:00:02]} Qf5 {[%clk 00:01:27]}
{[%emt 00:00:17]} 29. Qxf5+ {[%clk 00:00:12]} {[%emt 00:00:02]} Kxf5 {[%clk
00:01:27]} {[%emt 00:00:01]} 30. Bh3 {[%clk 00:00:12]} {[%emt 00:00:02]} bxc3
{[%clk 00:01:23]} {[%emt 00:00:07]} 31. bxc3 {[%clk 00:00:12]} Rb7 {[%clk
00:01:23]} 32. Rf8 {[%clk 00:00:12]} {[%emt 00:00:03]} f6 {[%clk 00:01:11]}
{[%emt 00:00:15]} 33. Rfe8 {[%clk 00:00:08]} {[%emt 00:00:07]} Rb2 {[%clk
00:01:10]} {[%emt 00:00:04]} 34. R8e2 {[%clk 00:00:08]} {[%emt 00:00:02]} Rb7
{[%clk 00:01:07]} {[%emt 00:00:07]} 35. Kg2 {[%clk 00:00:08]} a5 {[%clk
00:01:07]} {[%emt 00:00:02]} 36. Rd2 {[%clk 00:00:08]} {[%emt 00:00:02]} a4
{[%clk 00:01:07]} {[%emt 00:00:01]} 37. Ree2 {[%clk 00:00:06]} {[%emt
00:00:05]} a3 {[%clk 00:01:07]} {[%emt 00:00:01]} 38. Rc2 {[%clk 00:00:06]} Rb1
{[%clk 00:01:07]} {[%emt 00:00:02]} 39. Kf3 {[%clk 00:00:06]} {[%emt 00:00:03]}
Ra1 {[%clk 00:01:04]} {[%emt 00:00:07]} 40. Bxg4+ {[%clk 00:00:06]} {[%emt
00:00:01]} hxg4+ {[%clk 00:01:04]} {[%emt 00:00:01]} 41. Ke3 {[%clk 00:00:06]}
{[%emt 00:00:01]} Rg1 {[%clk 00:01:03]} {[%emt 00:00:03]} 42. Rg2 {[%clk
00:00:06]} {[%emt 00:00:01]} Re1+ {[%clk 00:01:03]} {[%emt 00:00:02]} 43. Kd3
{[%clk 00:00:06]} {[%emt 00:00:01]} Rb1 {[%clk 00:00:59]} {[%emt 00:00:07]} 44.
Kc4 {[%clk 00:00:06]} {[%emt 00:00:03]} Ke4 {[%clk 00:00:59]} {[%emt 00:00:01]}
45. Rgf2 {[%clk 00:00:06]} {[%emt 00:00:03]} Re1 {[%clk 00:00:57]} {[%emt
00:00:06]} 46. Rce2 {[%clk 00:00:06]} {[%emt 00:00:02]} Rxe2 {[%clk 00:00:57]}
47. Rxe2 {[%clk 00:00:06]} Kf3 {[%clk 00:00:57]} {[%emt 00:00:01]} 48. Re6
{[%clk 00:00:06]} Kxg3 {[%clk 00:00:57]} {[%emt 00:00:01]} 49. Rxf6 {[%clk
00:00:06]} {[%emt 00:00:02]} Kf2 {[%clk 00:00:57]} 50. Rxg6 {[%clk 00:00:06]}
{[%emt 00:00:02]} g3 {[%clk 00:00:57]} 51. f5 {[%clk 00:00:06]} {[%emt
00:00:01]} g2 {[%clk 00:00:57]} 52. f6 {[%clk 00:00:06]} g1=Q {[%clk 00:00:57]}
{[%emt 00:00:02]} 53. Rxg1 {[%clk 00:00:06]} {[%emt 00:00:01]} Kxg1 {[%clk
00:00:57]} 54. f7 {[%clk 00:00:06]} Kh2 {[%clk 00:00:57]} {[%emt 00:00:02]} 55.
f8=Q {[%clk 00:00:06]} {[%emt 00:00:02]} Kh3 {[%clk 00:00:57]} {[%emt
00:00:01]} 56. Kb3 {[%clk 00:00:06]} {[%emt 00:00:02]} c4+ {[%clk 00:00:57]} 57.
Kxa3 {[%clk 00:00:06]} {[%emt 00:00:02]} Kxh4 {[%clk 00:00:57]} 58. Kb4 {[%clk
00:00:06]} {[%emt 00:00:01]} Kg4 {[%clk 00:00:57]} 59. Kxc4 {[%clk 00:00:06]}
{[%emt 00:00:01]} Kg3 {[%clk 00:00:57]} {[%emt 00:00:01]} 60. Kd4 {[%clk
00:00:06]} Kg4 {[%clk 00:00:57]} {[%emt 00:00:01]} 61. Ke4 {[%clk 00:00:06]}
Kg5 {[%clk 00:00:57]} 62. Qg7+ {[%clk 00:00:06]} {[%emt 00:00:01]} Kh4 {[%clk
00:00:57]} {[%emt 00:00:03]} 63. Kf4 {[%clk 00:00:06]} 1-0

[Event "13 Open de Quenza"]
[Site "Quenza, France"]
[Date "2024.07.07"]
[Round "8.12"]
[White "Kuru, Atilla"]
[Black "Deladerriere, Apollo"]
[Result "1-0"]
[TimeControl "5min+3s/move"]
[WhiteElo "2372"]
[BlackElo "2063"]

1. c4 {[%clk 00:05:03]} {[%emt 00:00:01]} c6 {[%clk 00:05:03]} {[%emt
00:00:02]} 2. Nf3 {[%clk 00:05:03]} {[%emt 00:00:02]} d5 {[%clk 00:05:03]} 3.
e3 {[%clk 00:05:03]} {[%emt 00:00:02]} Nf6 {[%clk 00:05:03]} {[%emt 00:00:02]}
4. Nc3 {[%clk 00:05:03]} {[%emt 00:00:02]} Bg4 {[%clk 00:05:01]} {[%emt
00:00:05]} 5. Qb3 {[%clk 00:04:59]} {[%emt 00:00:07]} Bc8 {[%clk 00:03:41]}
{[%emt 00:01:24]} 6. d4 {[%clk 00:04:53]} {[%emt 00:00:08]} e6 {[%clk
00:03:41]} {[%emt 00:00:03]} 7. Bd3 {[%clk 00:04:50]} {[%emt 00:00:05]} Bd6
{[%clk 00:03:23]} {[%emt 00:00:23]} 8. e4 {[%clk 00:04:39]} {[%emt 00:00:14]}
dxe4 {[%clk 00:03:21]} {[%emt 00:00:05]} 9. Nxe4 {[%clk 00:04:39]} {[%emt
00:00:01]} Nxe4 {[%clk 00:03:17]} {[%emt 00:00:07]} 10. Bxe4 {[%clk 00:04:39]}
{[%emt 00:00:01]} Nd7 {[%clk 00:03:06]} {[%emt 00:00:14]} 11. O-O {[%clk
00:04:35]} {[%emt 00:00:07]} h6 {[%clk 00:03:06]} {[%emt 00:00:04]} 12. Re1
{[%clk 00:04:26]} {[%emt 00:00:12]} O-O {[%clk 00:03:06]} {[%emt 00:00:02]} 13.
Bc2 {[%clk 00:04:26]} Nf6 {[%clk 00:03:04]} {[%emt 00:00:06]} 14. h3 {[%clk
00:04:17]} {[%emt 00:00:11]} Qc7 {[%clk 00:02:49]} {[%emt 00:00:19]} 15. c5
{[%clk 00:04:06]} {[%emt 00:00:14]} Bf4 {[%clk 00:02:49]} {[%emt 00:00:03]} 16.
Ne5 {[%clk 00:03:58]} {[%emt 00:00:11]} Bxe5 {[%clk 00:02:46]} {[%emt
00:00:07]} 17. dxe5 {[%clk 00:03:58]} {[%emt 00:00:01]} Nd5 {[%clk 00:02:45]}
{[%emt 00:00:04]} 18. Qg3 {[%clk 00:03:15]} {[%emt 00:00:46]} Kh8 {[%clk
00:02:37]} {[%emt 00:00:11]} 19. Qh4 {[%clk 00:03:09]} {[%emt 00:00:09]} Qe7
{[%clk 00:02:26]} {[%emt 00:00:13]} 20. Qh5 {[%clk 00:02:53]} {[%emt 00:00:19]}
f5 {[%clk 00:02:15]} {[%emt 00:00:15]} 21. exf6 {[%clk 00:02:53]} {[%emt
00:00:01]} Nxf6 {[%clk 00:02:15]} {[%emt 00:00:02]} 22. Qe5 {[%clk 00:02:45]}
{[%emt 00:00:10]} b6 {[%clk 00:02:08]} {[%emt 00:00:11]} 23. Be3 {[%clk
00:02:37]} {[%emt 00:00:10]} Nd5 {[%clk 00:01:52]} {[%emt 00:00:20]} 24. Qe4
{[%clk 00:02:35]} {[%emt 00:00:05]} Nf6 {[%clk 00:01:52]} 25. Qxc6 {[%clk
00:02:34]} {[%emt 00:00:05]} Bb7 {[%clk 00:01:46]} {[%emt 00:00:09]} 26. Qb5
{[%clk 00:02:30]} {[%emt 00:00:05]} Rac8 {[%clk 00:01:41]} {[%emt 00:00:09]} 27.
b4 {[%clk 00:02:24]} {[%emt 00:00:09]} Qc7 {[%clk 00:01:35]} {[%emt 00:00:09]}
28. Bd4 {[%clk 00:02:08]} {[%emt 00:00:19]} a6 {[%clk 00:01:32]} {[%emt
00:00:07]} 29. Qe2 {[%clk 00:02:01]} {[%emt 00:00:08]} Qc6 {[%clk 00:01:29]}
{[%emt 00:00:08]} 30. f3 {[%clk 00:01:58]} {[%emt 00:00:05]} bxc5 {[%clk
00:01:18]} {[%emt 00:00:14]} 31. Bxc5 {[%clk 00:01:47]} {[%emt 00:00:14]} Rfe8
{[%clk 00:01:02]} {[%emt 00:00:19]} 32. Bg6 {[%clk 00:01:47]} {[%emt 00:00:03]}
Red8 {[%clk 00:00:57]} {[%emt 00:00:09]} 33. Qxe6 {[%clk 00:01:47]} {[%emt
00:00:02]} Qb5 {[%clk 00:00:40]} {[%emt 00:00:20]} 34. a4 {[%clk 00:01:40]}
{[%emt 00:00:10]} Qc6 {[%clk 00:00:31]} {[%emt 00:00:13]} 35. Be7 {[%clk
00:01:40]} {[%emt 00:00:01]} Rd2 {[%clk 00:00:22]} {[%emt 00:00:13]} 36. Qxc6
{[%emt 00:00:03]} Bxc6 {[%clk 00:00:17]} {[%emt 00:00:06]} 37. Rac1 {[%clk
00:01:32]} {[%emt 00:00:10]} Nd5 {[%clk 00:00:16]} {[%emt 00:00:04]} 38. b5
{[%clk 00:01:30]} {[%emt 00:00:05]} axb5 {[%clk 00:00:16]} {[%emt 00:00:02]} 39.
axb5 {[%clk 00:01:30]} {[%emt 00:00:01]} Bb7 {[%clk 00:00:13]} {[%emt
00:00:06]} 40. Rxc8+ {[%emt 00:00:01]} Bxc8 41. Bg5 {[%clk 00:01:28]} {[%emt
00:00:03]} Bd7 {[%clk 00:00:12]} {[%emt 00:00:04]} 42. Bxd2 {[%clk 00:01:28]}
{[%emt 00:00:03]} 1-0

[Event "13 Open de Quenza"]
[Site "Quenza, France"]
[Date "2024.07.07"]
[Round "9.1"]
[White "Anand, Viswanathan"]
[Black "Bellahcene, Bilel"]
[Result "1-0"]
[TimeControl "5min+3s/move"]
[WhiteElo "2751"]
[BlackElo "2535"]

1. e4 {[%clk 00:05:03]} c5 {[%clk 00:05:03]} {[%emt 00:00:01]} 2. Nf3 {[%emt
00:00:01]} Nc6 3. d4 {[%clk 00:05:03]} {[%emt 00:00:02]} cxd4 {[%clk 00:05:03]}
4. Nxd4 {[%clk 00:05:03]} {[%emt 00:00:01]} Nf6 {[%clk 00:05:03]} 5. Nc3 {[%clk
00:05:03]} {[%emt 00:00:01]} e6 {[%clk 00:05:03]} 6. Ndb5 {[%clk 00:05:03]}
{[%emt 00:00:02]} Bc5 {[%clk 00:05:03]} {[%emt 00:00:02]} 7. Bf4 {[%clk
00:04:56]} {[%emt 00:00:11]} O-O {[%clk 00:05:03]} {[%emt 00:00:02]} 8. Bc7
{[%clk 00:04:56]} {[%emt 00:00:01]} Qe7 {[%clk 00:05:03]} {[%emt 00:00:01]} 9.
Bd6 {[%clk 00:04:56]} Bxd6 {[%clk 00:05:03]} {[%emt 00:00:01]} 10. Qxd6 {[%clk
00:04:56]} Qd8 {[%clk 00:05:03]} 11. O-O-O {[%clk 00:04:41]} {[%emt 00:00:18]}
a6 {[%clk 00:05:03]} 12. Nd4 {[%clk 00:04:41]} {[%emt 00:00:02]} Ne7 {[%clk
00:05:00]} {[%emt 00:00:06]} 13. Nf3 {[%clk 00:04:30]} {[%emt 00:00:14]} Ne8
{[%clk 00:04:45]} {[%emt 00:00:19]} 14. Qg3 {[%clk 00:04:16]} {[%emt 00:00:16]}
b5 {[%clk 00:04:45]} {[%emt 00:00:03]} 15. e5 {[%clk 00:04:16]} Bb7 {[%clk
00:04:12]} {[%emt 00:00:36]} 16. Bd3 {[%clk 00:04:13]} {[%emt 00:00:05]} f5
{[%clk 00:04:09]} {[%emt 00:00:07]} 17. exf6 {[%clk 00:04:12]} {[%emt
00:00:05]} Nxf6 {[%clk 00:04:09]} {[%emt 00:00:01]} 18. Ng5 {[%clk 00:04:10]}
{[%emt 00:00:04]} Qe8 {[%clk 00:02:22]} {[%emt 00:01:51]} 19. Qh3 {[%clk
00:03:52]} {[%emt 00:00:21]} h6 {[%clk 00:02:13]} {[%emt 00:00:12]} 20. Nge4
{[%clk 00:03:52]} {[%emt 00:00:01]} Nxe4 {[%clk 00:01:58]} {[%emt 00:00:19]} 21.
Nxe4 {[%clk 00:03:48]} {[%emt 00:00:06]} Nd5 {[%clk 00:01:32]} {[%emt
00:00:30]} 22. Nd6 {[%clk 00:03:20]} {[%emt 00:00:30]} Qb8 {[%clk 00:01:32]}
{[%emt 00:00:01]} 23. Nxb7 {[%clk 00:03:19]} {[%emt 00:00:05]} Qxb7 {[%clk
00:01:32]} {[%emt 00:00:02]} 24. Be4 {[%clk 00:02:32]} {[%emt 00:00:49]} Rxf2
{[%clk 00:01:09]} {[%emt 00:00:26]} 25. Rhf1 {[%clk 00:01:48]} {[%emt
00:00:46]} Rxf1 {[%clk 00:01:03]} {[%emt 00:00:09]} 26. Rxf1 {[%clk 00:01:48]}
{[%emt 00:00:01]} Qc7 {[%clk 00:00:30]} {[%emt 00:00:37]} 27. Qf3 {[%clk
00:01:43]} {[%emt 00:00:07]} Qd6 {[%clk 00:00:29]} {[%emt 00:00:05]} 28. Qf7+
{[%clk 00:01:42]} {[%emt 00:00:04]} Kh8 {[%clk 00:00:29]} 29. Qg6 {[%clk
00:01:42]} {[%emt 00:00:03]} 1-0

[Event "13 Open de Quenza"]
[Site "Quenza, France"]
[Date "2024.07.07"]
[Round "9.2"]
[White "Maze, Sebastien"]
[Black "Lagarde, Maxime"]
[Result "1/2-1/2"]
[TimeControl "5min+3s/move"]
[WhiteElo "2553"]
[BlackElo "2608"]

1. e4 {[%clk 00:05:03]} {[%emt 00:00:02]} e5 {[%clk 00:05:03]} {[%emt
00:00:04]} 2. Nf3 {[%clk 00:05:03]} {[%emt 00:00:02]} Nc6 {[%clk 00:05:03]}
{[%emt 00:00:01]} 3. Bb5 {[%clk 00:05:00]} {[%emt 00:00:06]} Nf6 {[%clk
00:05:03]} {[%emt 00:00:02]} 4. O-O {[%clk 00:04:44]} {[%emt 00:00:18]} Nxe4
{[%clk 00:05:03]} {[%emt 00:00:03]} 5. Re1 {[%clk 00:04:34]} {[%emt 00:00:14]}
Nd6 {[%clk 00:05:03]} {[%emt 00:00:02]} 6. Nxe5 {[%clk 00:04:31]} {[%emt
00:00:06]} Nxe5 {[%clk 00:05:01]} {[%emt 00:00:05]} 7. Rxe5+ {[%clk 00:04:31]}
{[%emt 00:00:02]} Be7 {[%clk 00:05:01]} {[%emt 00:00:01]} 8. Bf1 {[%clk
00:04:22]} {[%emt 00:00:12]} O-O {[%clk 00:04:57]} {[%emt 00:00:06]} 9. d4
{[%clk 00:04:21]} {[%emt 00:00:04]} Bf6 {[%clk 00:04:38]} {[%emt 00:00:22]} 10.
Re1 {[%clk 00:04:21]} {[%emt 00:00:02]} Re8 {[%clk 00:04:34]} {[%emt 00:00:08]}
11. Rxe8+ {[%clk 00:03:58]} {[%emt 00:00:26]} Nxe8 {[%clk 00:04:31]} {[%emt
00:00:06]} 12. c3 {[%clk 00:03:56]} {[%emt 00:00:05]} d5 {[%clk 00:04:26]}
{[%emt 00:00:08]} 13. Bf4 {[%clk 00:03:35]} {[%emt 00:00:24]} c6 {[%clk
00:03:55]} {[%emt 00:00:34]} 14. Bd3 {[%clk 00:03:24]} {[%emt 00:00:14]} Nd6
{[%clk 00:03:20]} {[%emt 00:00:38]} 15. Nd2 {[%clk 00:02:49]} {[%emt 00:00:39]}
Bf5 {[%clk 00:03:15]} {[%emt 00:00:08]} 16. Bxf5 {[%clk 00:02:43]} {[%emt
00:00:09]} Nxf5 {[%clk 00:03:15]} {[%emt 00:00:02]} 17. Qc2 {[%clk 00:02:34]}
{[%emt 00:00:11]} g6 {[%clk 00:02:54]} {[%emt 00:00:24]} 18. Re1 {[%clk
00:02:33]} {[%emt 00:00:05]} Qd7 {[%clk 00:02:53]} {[%emt 00:00:05]} 19. Nf3
{[%clk 00:02:22]} {[%emt 00:00:13]} Re8 {[%clk 00:02:53]} {[%emt 00:00:03]} 20.
Qd1 {[%clk 00:02:06]} {[%emt 00:00:18]} Rxe1+ {[%clk 00:02:49]} {[%emt
00:00:07]} 21. Qxe1 {[%clk 00:02:06]} {[%emt 00:00:02]} Qe7 {[%clk 00:02:49]}
{[%emt 00:00:02]} 22. Qxe7 {[%clk 00:02:03]} {[%emt 00:00:07]} Bxe7 {[%clk
00:02:49]} {[%emt 00:00:01]} 23. g4 {[%clk 00:01:55]} {[%emt 00:00:11]} Ng7
{[%clk 00:02:35]} {[%emt 00:00:17]} 24. Kf1 {[%clk 00:01:39]} {[%emt 00:00:19]}
Ne6 {[%clk 00:02:35]} {[%emt 00:00:02]} 25. Be5 {[%clk 00:01:30]} {[%emt
00:00:12]} f6 {[%clk 00:02:35]} {[%emt 00:00:03]} 26. Bb8 {[%clk 00:01:28]}
{[%emt 00:00:05]} a6 {[%clk 00:02:35]} {[%emt 00:00:02]} 27. Ne1 {[%clk
00:01:22]} {[%emt 00:00:09]} Kf7 {[%clk 00:02:33]} {[%emt 00:00:05]} 28. Nd3
{[%clk 00:01:21]} {[%emt 00:00:04]} g5 {[%clk 00:02:21]} {[%emt 00:00:15]} 29.
h3 {[%clk 00:01:18]} {[%emt 00:00:06]} Kg6 {[%clk 00:02:16]} {[%emt 00:00:08]}
30. f4 {[%clk 00:01:05]} {[%emt 00:00:16]} gxf4 {[%clk 00:02:15]} {[%emt
00:00:04]} 31. Nxf4+ {[%clk 00:01:05]} {[%emt 00:00:03]} Nxf4 {[%clk 00:02:15]}
{[%emt 00:00:02]} 32. Bxf4 {[%clk 00:01:05]} {[%emt 00:00:02]} f5 {[%clk
00:02:11]} {[%emt 00:00:07]} 33. Ke2 {[%clk 00:00:59]} {[%emt 00:00:09]} fxg4
{[%clk 00:02:11]} {[%emt 00:00:02]} 34. hxg4 {[%clk 00:00:59]} {[%emt
00:00:01]} h6 {[%clk 00:01:56]} {[%emt 00:00:18]} 35. b3 {[%clk 00:00:49]}
{[%emt 00:00:12]} Bg5 {[%clk 00:01:56]} {[%emt 00:00:03]} 36. Be5 {[%clk
00:00:47]} {[%emt 00:00:04]} Kf7 {[%clk 00:01:54]} {[%emt 00:00:06]} 37. Kd3
{[%clk 00:00:47]} {[%emt 00:00:02]} Ke6 {[%clk 00:01:51]} {[%emt 00:00:06]} 38.
a4 {[%clk 00:00:45]} {[%emt 00:00:05]} b5 {[%clk 00:01:45]} {[%emt 00:00:09]}
39. axb5 {[%clk 00:00:42]} {[%emt 00:00:07]} axb5 {[%clk 00:01:45]} {[%emt
00:00:01]} 40. Bg3 {[%clk 00:00:38]} {[%emt 00:00:07]} Kd7 {[%clk 00:01:45]}
{[%emt 00:00:03]} 41. Be5 {[%clk 00:00:38]} {[%emt 00:00:02]} Ke6 {[%clk
00:01:45]} 42. Bg3 {[%clk 00:00:38]} Kd7 {[%clk 00:01:45]} {[%emt 00:00:01]} 43.
Be5 Ke6 44. Bg3 Kd7 45. Be5 1/2-1/2